bitfinex/quotes_SOLUSD_20260214
["timestamp","ask_amount","ask_price","bid_price","bid_amount"]
[1771036534148,0.4524444,84.857,84.83,12.28614047]
[1771036534955,0.4524444,84.857,84.831,0.497863]
[1771036536743,0.4524444,84.857,84.832,11.78800452]
[1771036537244,0.4524444,84.857,84.832,12.28586752]
[1771036537763,0.4524444,84.855,84.822,11.78939426]
[1771036537946,0.4524444,84.849,84.812,0.497863]
[1771036538856,0.4998162,84.847,84.814,0.45331146]
[1771036540557,0.4998162,84.845,84.814,0.45331146]
[1771036541955,0.4998162,84.845,84.81,3.55968175]
[1771036542257,0.4998162,84.839,84.811,0.45331146]
[1771036543332,0.4998162,84.839,84.812,11.79078432]
[1771036543533,0.4998162,84.839,84.813,0.45331146]
[1771036545456,12.28638454,84.843,84.815,0.45331146]
[1771036545635,0.4998162,84.842,84.815,0.45331146]
[1771036546653,0.4998162,84.842,84.821,0.45331146]
[1771036546854,11.78656834,84.843,84.821,0.45331146]
[1771036548263,0.4998162,84.847,84.821,0.45331146]
[1771036552140,0.4998162,84.844,84.821,0.45331146]
[1771036555266,12.28629239,84.843,84.821,0.45331146]
[1771036556570,0.4998162,84.843,84.821,0.45331146]
[1771036556879,0.4998162,84.843,84.821,12.24283637]
[1771036557174,0.4998162,84.843,84.822,0.45331146]
[1771036557348,12.28629239,84.843,84.822,0.45331146]
[1771036561745,0.47966215,84.84,84.815,54.64]
[1771036562460,0.47966215,84.84,84.816,0.47417286]
[1771036564363,0.47966215,84.838,84.815,54.64]
[1771036564670,0.47966215,84.838,84.805,0.47417286]
[1771036567180,11.78730978,84.837,84.805,0.47417286]
[1771036567385,0.47966215,84.836,84.805,0.47417286]
[1771036569758,0.47966215,84.833,84.805,0.47417286]
[1771036571282,11.78772661,84.834,84.801,54.76]
[1771036571283,0.47966215,84.829,84.801,54.76]
[1771036571579,0.47966215,84.819,84.801,54.76]
[1771036571782,0.47966215,84.819,84.793,0.47417286]
[1771036574186,0.47966215,84.826,84.795,0.47417286]
[1771036576086,0.47966215,84.809,84.786,0.47417286]
[1771036579363,0.47966215,84.807,84.786,0.47417286]
[1771036596190,0.47966215,84.807,84.774,54.92]
[1771036596191,0.48684887,84.821,84.791,0.45644395]
[1771036597292,0.48684887,84.83,84.801,0.45644395]
[1771036597493,0.48684887,84.844,84.811,0.45644395]
[1771036598492,0.47863471,84.858,84.831,0.48081786]
[1771036598677,11.78466917,84.857,84.831,0.48081786]
[1771036598876,12.26330388,84.857,84.831,0.48081786]
[1771036599077,0.47863471,84.856,84.831,0.48081786]
[1771036602606,11.78480938,84.855,84.831,0.48081786]
[1771036602807,12.26344409,84.855,84.831,0.48081786]
[1771036603902,0.47863471,84.854,84.831,0.48081786]
[1771036604099,0.47863471,84.854,84.826,0.48081786]
[1771036606504,11.78508715,84.853,84.82,0.48081786]
[1771036606708,0.47863471,84.852,84.82,0.48081786]
[1771036606901,0.47863471,84.852,84.82,3.56277774]
[1771036607201,0.47863471,84.852,84.821,0.48081786]
[1771036607810,103.5,84.851,84.821,0.48081786]
[1771036608110,0.47863471,84.85,84.821,0.48081786]
[1771036609530,0.47863471,84.85,84.823,0.48081786]
[1771036610912,0.47863471,84.849,84.823,0.48081786]
[1771036611617,0.47863471,84.849,84.825,0.48081786]
[1771036612920,0.47863471,84.849,84.827,0.48081786]
[1771036613117,0.2,84.86,84.841,0.48081786]
[1771036615412,0.2,84.86,84.843,0.48081786]
[1771036615714,0.2,84.86,84.851,0.48081786]
[1771036616011,0.47863471,84.884,84.851,0.48081786]
[1771036616202,0.47863471,84.884,84.842,11.78661511]
[1771036616203,0.47863471,84.884,84.861,0.48081786]
[1771036616399,103.7,84.88,84.871,0.48081786]
[1771036619115,103.7,84.88,84.866,0.48081786]
[1771036619416,0.47863471,84.879,84.861,0.48081786]
[1771036620816,0.47863471,84.877,84.84,3.56277774]
[1771036621023,0.47863471,84.877,84.842,0.48116838]
[1771036621416,0.47863471,84.877,84.851,0.48116838]
[1771036621928,0.47863471,84.877,84.843,0.48116838]
[1771036622131,0.47863471,84.877,84.851,0.48116838]
[1771036622817,103.7,84.88,84.85,3.56277774]
[1771036622818,103.7,84.88,84.861,0.48116838]
[1771036624221,103.19999745,84.88,84.871,0.48116838]
[1771036624816,103.19999745,84.88,84.872,0.48116838]
[1771036625018,0.2,84.9,84.881,0.30001133]
[1771036625326,0.2,84.9,84.882,0.30016068]
[1771036626829,0.2,84.9,84.884,0.30030507]
[1771036630127,0.2,84.9,84.891,0.30071622]
[1771036630511,0.2,84.9,84.892,55.06]
[1771036630908,0.2,84.91,84.893,0.30084743]
[1771036631124,0.2,84.91,84.9,3.86362517]
[1771036633227,0.2,84.91,84.9,0.30084743]
[1771036633611,0.2,84.91,84.898,11.77871966]
[1771036635106,0.2,84.91,84.892,55.06]
[1771036635107,0.46284502,84.909,84.892,55.06]
[1771036635907,0.46284502,84.908,84.892,55.06]
[1771036636102,0.46284502,84.908,84.892,53.3585109]
[1771036641335,11.77759195,84.907,84.892,53.3585109]
[1771036641637,11.77759195,84.907,84.877,66.94173551]
[1771036642012,11.77759195,84.907,84.877,11.78173551]
[1771036642218,3.56277774,84.9,84.877,55.16]
[1771036643339,11.77759195,84.907,84.878,0.50074772]
[1771036650042,0.2,84.91,84.881,0.50074772]
[1771036651948,0.02222364,84.908,84.877,55.66074772]
[1771036652628,0.02339571,84.899,84.877,55.16]
[1771036652827,0.02339571,84.899,84.869,0.50074772]
[1771036653028,0.02339571,84.899,84.87,55.26]
[1771036653440,0.02339571,84.899,84.87,55.76074772]
[1771036654049,0.02339571,84.899,84.852,29.4629908]
[1771036654050,0.02456075,84.889,84.855,0.50074772]
[1771036654244,0.02456075,84.879,84.846,0.50074772]
[1771036654552,0.02456075,84.879,84.846,55.76074772]
[1771036654850,0.02456075,84.879,84.847,0.50074772]
[1771036655430,0.02684874,84.878,84.849,0.50074772]
[1771036658955,0.02684874,84.878,84.851,0.51309851]
[1771036668177,0.02684874,84.878,84.853,0.51309851]
[1771036670774,0.02684874,84.878,84.855,0.51309851]
[1771036671971,103.5,84.88,84.857,0.51309851]
[1771036672278,11.82574794,84.879,84.857,0.51309851]
[1771036672476,0.045198,84.878,84.857,0.51309851]
[1771036677674,0.04965624,84.877,84.846,55.26]
[1771036677886,0.04965624,84.877,84.843,0.51309851]
[1771036679781,0.05137842,84.869,84.843,0.51309851]
[1771036682566,0.0546972,84.859,84.829,0.50074772]
[1771036683588,0.05550598,84.849,84.83,12.28903016]
[1771036683788,0.05550598,84.849,84.831,0.50074772]
[1771036685368,0.05709386,84.858,84.831,0.50074772]
[1771036685889,0.05709386,84.858,84.833,0.50074772]
[1771036686078,0.05709386,84.861,84.833,0.50074772]
[1771036686281,0.05709386,84.859,84.833,0.50074772]
[1771036686986,103.55709386,84.859,84.833,0.50074772]
[1771036687668,115.34147674,84.859,84.833,0.50074772]
[1771036688068,0.05864492,84.858,84.833,0.50074772]
[1771036711715,0.05864492,84.858,84.835,0.50074772]
[1771036718920,103.5,84.859,84.837,0.53332812]
[1771036719306,11.78341965,84.866,84.837,0.53332812]
[1771036725138,11.78341965,84.866,84.839,0.53332812]
[1771036727519,11.86686489,84.87,84.841,0.53332812]
[1771036728726,11.78272652,84.87,84.841,0.53332812]
[1771036728931,0.08460811,84.869,84.841,0.53332812]
[1771036733817,103.5,84.874,84.843,0.53332812]
[1771036734131,103.5,84.874,84.851,0.53332812]
[1771036735135,0.08730578,84.873,84.851,0.53332812]
[1771036736135,0.08773801,84.872,84.851,0.53332812]
[1771036740342,103.5,84.874,84.851,0.53332812]
[1771036745647,0.09215292,84.875,84.851,0.53332812]
[1771036747631,0.09215292,84.875,84.853,0.50074772]
[1771036748045,103.5,84.876,84.853,0.50074772]
[1771036748547,0.09326285,84.875,84.853,0.50074772]
[1771036760160,103.5,84.876,84.853,0.50074772]
[1771036761665,103.5976619,84.876,84.853,0.50074772]
[1771036762172,0.0976619,84.875,84.853,0.50074772]
[1771036764464,0.09858548,84.874,84.853,0.50074772]
[1771036772073,103.5,84.876,84.855,0.53698817]
[1771036772266,103.60089977,84.878,84.855,0.53698817]
[1771036774480,103.5,84.878,84.855,0.53698817]
[1771036774684,0.10172053,84.877,84.855,0.53698817]
[1771036776282,11.8834753,84.877,84.855,0.53698817]
[1771036780370,11.78175477,84.877,84.855,0.53698817]
[1771036784776,0.10449419,84.876,84.848,0.50188713]
[1771036786872,11.78175477,84.877,84.85,0.50188713]
[1771036791794,11.78175477,84.877,84.851,11.78536493]
[1771036791972,11.78175477,84.877,84.852,0.50188713]
[1771036793788,0.52316038,84.907,84.885,0.50188713]
[1771036794090,0.52316038,84.907,84.843,41.25266668]
[1771036794091,0.52316038,84.907,84.873,0.50188713]
[1771036796290,6.14915248,84.908,84.875,0.50188713]
[1771036796291,0.52316038,84.905,84.875,0.50188713]
[1771036798699,0.52316038,84.905,84.877,0.50188713]
[1771036799395,103.5,84.939,84.903,0.50188713]
[1771036799604,0.2,84.95,84.921,0.50188713]
[1771036799778,0.2,84.95,84.92,3.55822513]
[1771036799779,0.2,84.95,84.94,3.55822513]
[1771036800076,0.52316038,84.949,84.926,0.50188713]
[1771036800276,0.52316038,84.939,84.907,0.50188713]
[1771036800503,0.52316038,84.939,84.901,0.50188713]
[1771036800799,0.52316038,84.929,84.901,0.50188713]
[1771036801004,0.52316038,84.929,84.899,11.77862569]
[1771036801602,0.52316038,84.929,84.899,12.28820166]
[1771036801778,0.52316038,84.929,84.901,0.50957597]
[1771036802104,0.51416962,84.934,84.901,0.50957597]
[1771036802997,0.51416962,84.933,84.911,0.50957597]
[1771036803381,12.28815617,84.933,84.911,0.50957597]
[1771036804502,0.51416962,84.932,84.911,0.50957597]
[1771036804876,0.51416962,84.93,84.906,0.50957597]
[1771036807106,0.51416962,84.93,84.902,11.69887787]
[1771036808024,0.51416962,84.935,84.902,11.69887787]
[1771036809298,0.51416962,84.933,84.903,0.11177607]
[1771036811003,11.77412518,84.932,84.903,0.11177607]
[1771036811300,0.51416962,84.931,84.903,0.11177607]
[1771036813212,0.51416962,84.929,84.903,0.11177607]
[1771036819798,69.9,84.935,84.885,55.54]
[1771036819799,0.51416962,84.927,84.89,3.55822513]
[1771036820108,11.77467972,84.928,84.888,0.12768234]
[1771036820109,0.51416962,84.919,84.888,0.12768234]
[1771036820311,0.51416962,84.919,84.891,0.12903026]
[1771036821714,0.51416962,84.909,84.88,3.55822513]
[1771036821903,0.51416962,84.909,84.881,0.13035552]
[1771036822098,103.5,84.934,84.891,0.13035552]
[1771036822099,0.51416962,84.922,84.891,0.13035552]
[1771036824017,0.51416962,84.922,84.891,11.77981175]
[1771036824310,0.51416962,84.922,84.892,0.13296437]
[1771036829831,0.51416962,84.92,84.892,0.13296437]
[1771036835034,0.56118373,84.923,84.892,0.13296437]
[1771036836627,0.56118373,84.921,84.892,0.13296437]
[1771036839929,0.57648267,84.919,84.892,0.13296437]
[1771036840243,0.57648267,84.919,84.885,11.78052284]
[1771036841326,0.57648267,84.917,84.884,0.14576118]
[1771036842529,11.77606632,84.918,84.872,0.14679778]
[1771036842530,0.57648267,84.909,84.872,0.14679778]
[1771036844753,0.57648267,84.907,84.872,0.14679778]
[1771036847248,0.57648267,84.905,84.872,0.14679778]
[1771036848648,0.57648267,84.905,84.872,0.14876847]
[1771036849249,0.57648267,84.903,84.872,0.14876847]
[1771036853450,0.57648267,84.899,84.872,0.14876847]
[1771036856654,0.57648267,84.91,84.891,0.15117645]
[1771036856950,0.57648267,84.91,84.881,0.15117645]
[1771036858552,0.57648267,84.91,84.882,0.15175383]
[1771036860639,0.57648267,84.91,84.89,3.55567624]
[1771036860862,0.57648267,84.91,84.891,0.15232181]
[1771036861738,115.27657396,84.915,84.891,0.15232181]
[1771036861739,0.56245808,84.914,84.891,0.15232181]
[1771036862450,103.5,84.915,84.892,0.15314777]
[1771036862958,71.24,84.917,84.892,0.15314777]
[1771036863132,0.56245808,84.916,84.892,0.15314777]
[1771036881670,71.24,84.917,84.892,0.15314777]
[1771036882368,72.12,84.917,84.892,0.15314777]
[1771036882871,72.68245808,84.917,84.892,0.15314777]
[1771036884786,0.56245808,84.932,84.892,0.15314777]
[1771036884960,72.18,84.919,84.892,0.15314777]
[1771036887586,0.56245808,84.918,84.892,0.15314777]
[1771036899198,0.56972316,84.918,84.892,0.15314777]
[1771036913605,103.5,84.945,84.9,3.55398606]
[1771036913905,11.77026438,84.96,84.931,0.53757866]
[1771036914709,71.98,84.964,84.94,4.09156472]
[1771036914900,11.77006562,84.962,84.94,4.09156472]
[1771036915083,11.77006562,84.962,84.94,0.53757866]
[1771036915703,0.56972316,84.954,84.94,0.53757866]
[1771036917107,0.56972316,84.954,84.941,12.3104563]
[1771036917293,0.56972316,84.954,84.941,11.77287764]
[1771036918601,0.56972316,84.951,84.941,11.77287764]
[1771036919406,0.76972316,84.95,84.941,11.77287764]
[1771036919711,0.56972316,84.949,84.931,11.77426381]
[1771036920510,0.56972316,84.949,84.922,11.775425]
[1771036920511,0.56972316,84.948,84.922,11.775425]
[1771036920712,0.56972316,84.939,84.908,11.77745324]
[1771036920924,0.56972316,84.939,84.909,0.53757866]
[1771036921596,0.56972316,84.939,84.91,11.77717583]
[1771036921796,0.56972316,84.939,84.911,0.55679032]
[1771036922893,0.56972316,84.939,84.913,0.55679032]
[1771036923216,0.57528158,84.949,84.931,0.55679032]
[1771036924298,0.57528158,84.949,84.933,0.55679032]
[1771036930615,0.57528158,84.947,84.922,11.77548932]
[1771036930795,0.57528158,84.947,84.913,12.33355006]
[1771036931117,0.57528158,84.947,84.914,0.55679032]
[1771036936121,0.57528158,84.947,84.915,11.77648236]
[1771036936301,0.57528158,84.947,84.916,0.55679032]
[1771036942103,0.57528158,84.947,84.918,0.55679032]
[1771036946323,0.57528158,84.947,84.92,0.55679032]
[1771036951630,0.57528158,84.947,84.922,0.55830061]
[1771036957220,0.57528158,84.947,84.923,12.33367359]
[1771036957527,0.57528158,84.947,84.924,0.55830061]
[1771036967538,0.58937257,84.939,84.892,0.57233007]
[1771036967718,0.58937257,84.929,84.893,0.57233007]
[1771036971137,0.58937257,84.928,84.895,0.57233007]
[1771036975138,0.58937257,84.928,84.897,0.57233007]
[1771036977156,0.58937257,84.928,84.898,11.77884049]
[1771036977330,0.58937257,84.928,84.899,0.57233007]
[1771036978248,72.74,84.935,84.892,11.7795396]
[1771036978249,0.58937257,84.919,84.892,11.7795396]
[1771036980342,11.77606632,84.918,84.892,11.7795396]
[1771036980545,0.58937257,84.909,84.87,0.57233007]
[1771036980737,0.58937257,84.909,84.872,0.57233007]
[1771036982552,3.55211774,84.91,84.869,29.45702495]
[1771036982553,0.56862512,84.907,84.874,0.60042291]
[1771036983841,0.56862512,84.907,84.88,3.55211774]
[1771036984046,0.56862512,84.916,84.881,0.60042291]
[1771036986051,0.56862512,84.916,84.883,0.60042291]
[1771036989640,0.56862512,84.916,84.885,0.60042291]
[1771036993357,0.56862512,84.915,84.887,0.60042291]
[1771036997736,0.56862512,84.915,84.889,0.60042291]
[1771036998154,0.56862512,84.913,84.889,0.60042291]
[1771037000259,0.56862512,84.911,84.882,0.60042291]
[1771037000461,0.56862512,84.909,84.882,0.60042291]
[1771037002362,0.56862512,84.907,84.882,0.60042291]
[1771037003561,0.56862512,84.905,84.882,0.60042291]
[1771037005361,0.56862512,84.905,84.874,0.60042291]
[1771037005567,11.77773066,84.906,84.874,0.60042291]
[1771037005568,0.56862512,84.903,84.874,0.60042291]
[1771037006756,11.77828555,84.902,84.874,0.60042291]
[1771037007059,0.56862512,84.901,84.874,0.60042291]
[1771037007851,11.77856301,84.9,84.874,0.60042291]
[1771037008043,0.56862512,84.899,84.874,0.60042291]
[1771037009866,11.77884049,84.898,84.874,0.60042291]
[1771037010042,0.56862512,84.897,84.874,0.60042291]
[1771037012677,0.56862512,84.897,84.876,0.60284242]
[1771037013370,0.56862512,84.897,84.872,0.60284242]
[1771037013572,0.59113948,84.909,84.874,0.60284242]
[1771037013780,47.0602178,84.998,84.876,0.60284242]
[1771037013781,0.59113948,84.922,84.876,0.60284242]
[1771037014070,3.55211774,84.92,84.874,0.60284242]
[1771037014244,0.59113948,84.934,84.891,0.60284242]
[1771037014459,0.59113948,84.929,84.892,11.77967299]
[1771037014647,0.59113948,84.929,84.893,0.60284242]
[1771037015875,11.77398655,84.933,84.874,0.60284242]
[1771037015876,0.59113948,84.909,84.874,0.60284242]
[1771037016056,0.59113948,84.899,84.869,0.60284242]
[1771037017570,3.55211774,84.9,84.869,0.60284242]
[1771037017571,0.59113948,84.897,84.869,0.60284242]
[1771037018260,0.59113948,84.897,84.87,0.60284242]
[1771037018767,0.60427195,84.907,84.871,0.57864365]
[1771037020065,0.60427195,84.905,84.873,0.57864365]
[1771037020470,0.60427195,84.905,84.864,11.78345827]
[1771037020780,0.60427195,84.899,84.862,0.57864365]
[1771037022378,4.61729252,84.934,84.857,0.57864365]
[1771037022379,0.60427195,84.889,84.857,0.57864365]
[1771037022673,0.60427195,84.895,84.857,0.57864365]
[1771037023974,0.60427195,84.895,84.858,11.78439275]
[1771037024180,0.60427195,84.895,84.86,3.556805]
[1771037024378,0.60427195,84.908,84.871,0.57864365]
[1771037026869,0.60427195,84.906,84.873,0.57864365]
[1771037027072,0.60427195,84.906,84.872,11.78244886]
[1771037027073,0.60427195,84.906,84.881,0.57864365]
[1771037027868,29.43927794,84.921,84.881,0.57864365]
[1771037027869,0.60427195,84.918,84.881,0.57864365]
[1771037029582,0.60427195,84.916,84.883,0.57864365]
[1771037032897,0.60427195,84.914,84.885,0.57864365]
[1771037034575,0.60427195,84.909,84.879,0.57864365]
[1771037035196,11.77745324,84.908,84.879,0.57864365]
[1771037035397,0.60427195,84.907,84.879,0.57864365]
[1771037037596,0.60427195,84.905,84.879,0.57864365]
[1771037037995,0.60427195,84.905,84.878,11.78155472]
[1771037039099,0.60427195,84.899,84.862,0.57864365]
[1771037039280,0.60427195,84.899,84.863,0.57864365]
[1771037039684,4.61729252,84.944,84.881,0.57864365]
[1771037039685,0.60427195,84.911,84.881,0.57864365]
[1771037039879,73.50427195,84.911,84.881,0.57864365]
[1771037040300,0.60427195,84.91,84.881,0.57864365]
[1771037040996,0.60427195,84.909,84.871,0.57864365]
[1771037041399,0.60374306,84.899,84.858,12.3760879]
[1771037041598,0.60374306,84.899,84.859,0.5917567]
[1771037041804,3.556805,84.9,84.859,0.5917567]
[1771037041805,0.60374306,84.897,84.859,0.5917567]
[1771037042297,3.556805,84.89,84.859,0.5917567]
[1771037042496,0.60374306,84.889,84.859,0.5917567]
[1771037043904,0.60374306,84.879,84.845,0.5917567]
[1771037044095,0.60374306,84.879,84.849,0.5917567]
[1771037044301,0.60374306,84.879,84.849,12.37739943]
[1771037044605,0.60374306,84.879,84.85,0.5917567]
[1771037046797,0.60374306,84.877,84.852,0.5917567]
[1771037049187,0.60374306,84.889,84.854,0.5917567]
[1771037049405,0.60374306,84.889,84.861,0.5917567]
[1771037051710,0.60374306,84.887,84.851,11.78536493]
[1771037051906,0.60374306,84.887,84.851,12.37712163]
[1771037052094,0.60374306,84.887,84.852,0.5917567]
[1771037054504,0.60374306,84.885,84.852,0.5917567]
[1771037054713,11.78050561,84.886,84.847,0.5917567]
[1771037054714,0.60374306,84.879,84.847,0.5917567]
[1771037054918,0.60374306,84.879,84.842,11.78652312]
[1771037055302,0.60374306,84.877,84.848,25.42201857]
[1771037055504,0.60374306,84.877,84.849,0.5917567]
[1771037056105,0.60374306,84.877,84.848,24.83026187]
[1771037056303,0.60374306,84.867,84.839,0.5917567]
[1771037056498,0.60374306,84.867,84.838,11.78710936]
[1771037056499,0.60374306,84.88,84.841,0.5917567]
[1771037057516,12.38521533,84.88,84.842,11.78661511]
[1771037057815,12.38521533,84.88,84.843,0.5917567]
[1771037058809,0.60374306,84.879,84.845,0.5917567]
[1771037059811,3.556805,84.89,84.844,11.78633727]
[1771037059812,11.78008929,84.889,84.851,0.5917567]
[1771037060007,0.60374306,84.888,84.851,0.5917567]
[1771037060898,0.60374306,84.886,84.851,0.5917567]
[1771037061417,0.60374306,84.879,84.845,0.5917567]
[1771037061615,0.60374306,84.879,84.839,0.5917567]
[1771037062618,0.60374306,84.869,84.839,0.5917567]
[1771037063519,11.78300419,84.868,84.84,0.5917567]
[1771037063723,0.60374306,84.867,84.84,0.5917567]
[1771037065022,0.60374306,84.865,84.841,0.5917567]
[1771037068423,0.60374306,84.863,84.841,0.5917567]
[1771037070735,0.60374306,84.863,84.843,0.5917567]
[1771037072828,72.88,84.873,84.83,15.61654257]
[1771037072829,0.57508463,84.868,84.845,0.56432853]
[1771037074127,29.46817154,85.048,84.83,15.61654257]
[1771037074128,0.57508463,84.904,84.863,0.56432853]
[1771037074312,0.57508463,84.901,84.863,0.56432853]
[1771037074634,0.57508463,84.889,84.858,11.78436401]
[1771037074814,0.57508463,84.889,84.858,12.34869254]
[1771037075311,72.9,84.888,84.858,12.34869254]
[1771037075516,0.57508463,84.885,84.86,12.34844354]
[1771037075712,0.57508463,84.885,84.86,11.78411501]
[1771037075918,0.57508463,84.885,84.861,0.56432853]
[1771037078529,11.78078318,84.884,84.856,0.56316873]
[1771037078820,0.60187787,84.883,84.856,0.56316873]
[1771037082818,0.60187787,84.883,84.858,0.56316873]
[1771037086738,0.60187787,84.883,84.86,0.56316873]
[1771037086944,11.78106076,84.882,84.86,0.56316873]
[1771037087244,0.60187787,84.881,84.86,0.56316873]
[1771037092532,0.60187787,84.88,84.86,0.56316873]
[1771037094341,0.60187787,84.878,84.85,0.56316873]
[1771037094641,0.60187787,84.876,84.845,0.56316873]
[1771037098543,73.04,84.881,84.851,0.56316873]
[1771037099223,58.8674082,84.937,84.871,0.56316873]
[1771037099539,0.2,84.95,84.901,0.56316873]
[1771037099540,0.60187787,84.941,84.901,0.56316873]
[1771037099833,0.60187787,84.938,84.891,0.56316873]
[1771037100144,0.60187787,84.936,84.901,0.56316873]
[1771037100336,0.60187787,84.929,84.881,0.56316873]
[1771037100644,0.60187787,84.909,84.881,0.56316873]
[1771037100939,0.60197791,84.899,84.874,0.56316873]
[1771037104244,11.77884049,84.898,84.874,0.56316873]
[1771037104438,12.3808184,84.898,84.874,0.56316873]
[1771037105448,11.77801828,84.904,84.874,0.56316873]
[1771037105751,0.60197791,84.903,84.874,0.56316873]
[1771037106128,0.60197791,84.903,84.875,0.60451353]
[1771037106954,0.60197791,84.901,84.875,0.60451353]
[1771037107328,0.60197791,84.901,84.876,11.78189358]
[1771037107526,0.60197791,84.901,84.877,0.60451353]
[1771037110365,0.60197791,84.912,84.881,0.60451353]
[1771037110747,11.77616566,84.918,84.881,0.60451353]
[1771037111166,12.37814357,84.918,84.881,0.60451353]
[1771037111368,0.60197791,84.917,84.881,0.60451353]
[1771037111554,11.77634368,84.916,84.883,0.60451353]
[1771037112262,12.37832159,84.916,84.883,0.60451353]
[1771037113066,0.60197791,84.915,84.885,0.60451353]
[1771037113272,0.60197791,84.909,84.87,0.60451353]
[1771037113571,0.60197791,84.899,84.87,0.60451353]
[1771037114565,0.60197791,84.897,84.87,0.60451353]
[1771037116267,0.60197791,84.895,84.87,0.60451353]
[1771037116573,0.60197791,84.895,84.872,0.60451353]
[1771037118468,12.38137339,84.894,84.872,0.60451353]
[1771037120072,0.60197791,84.922,84.881,0.60451353]
[1771037120256,0.60197791,84.909,84.881,0.60451353]
[1771037120464,0.60197791,84.899,84.867,0.60451353]
[1771037121277,0.60197791,84.899,84.85,3.55782462]
[1771037121278,0.60197791,84.899,84.856,0.60451353]
[1771037122782,0.60197791,84.897,84.861,0.60451353]
[1771037123162,0.60197791,84.897,84.871,0.60451353]
[1771037123361,0.60197791,84.902,84.871,0.60451353]
[1771037124878,0.60197791,84.901,84.873,0.60451353]
[1771037126680,0.60197791,84.901,84.874,11.78217121]
[1771037126872,0.60197791,84.901,84.875,0.60451353]
[1771037130784,0.60197791,84.906,84.877,0.60451353]
[1771037132288,0.5913618,84.904,84.878,11.78161596]
[1771037132487,0.5913618,84.904,84.878,12.35601475]
[1771037132684,0.5913618,84.904,84.879,0.57439879]
[1771037134389,0.5913618,84.904,84.866,29.45806799]
[1771037134390,0.5913618,84.902,84.862,0.57439879]
[1771037134570,0.5913618,84.899,84.862,0.57439879]
[1771037138096,0.5913618,84.899,84.857,4.61729252]
[1771037138097,0.5913618,84.897,84.864,0.57439879]
[1771037142294,0.5913618,84.897,84.857,4.61729252]
[1771037142295,0.56858454,84.895,84.866,0.59692748]
[1771037144888,0.56858454,84.895,84.867,11.78314303]
[1771037145088,0.56858454,84.895,84.868,0.59692748]
[1771037145403,0.56858454,84.893,84.868,0.59692748]
[1771037146201,3.55686861,84.89,84.851,0.59692748]
[1771037146405,0.56858454,84.889,84.852,0.59692748]
[1771037147398,72.94,84.899,84.838,4.61729252]
[1771037147399,0.56858454,84.899,84.871,0.59692748]
[1771037149402,0.56858454,84.897,84.871,0.59692748]
[1771037150704,11.77911797,84.896,84.871,0.59692748]
[1771037151006,0.56858454,84.895,84.871,0.59692748]
[1771037152908,0.56858454,84.907,84.873,0.59692748]
[1771037153107,0.56858454,84.917,84.881,0.59692748]
[1771037154584,0.56858454,84.915,84.881,0.59692748]
[1771037156312,0.56858454,84.913,84.881,0.59692748]
[1771037158911,11.77689843,84.912,84.881,0.59692748]
[1771037159212,0.56858454,84.911,84.881,0.59692748]
[1771037164724,11.77717583,84.91,84.881,0.59692748]
[1771037165015,0.54992787,84.909,84.881,0.59692748]
[1771037167811,0.54992787,84.907,84.883,0.57762093]
[1771037170708,12.32765853,84.906,84.883,0.57762093]
[1771037170903,0.54992787,84.905,84.883,0.57762093]
[1771037177314,0.54992787,84.948,84.901,0.57762093]
[1771037177524,0.54992787,84.946,84.901,0.57762093]
[1771037178521,0.54992787,84.944,84.903,0.57762093]
[1771037179105,0.54992787,84.942,84.903,0.57762093]
[1771037180506,0.54992787,84.94,84.905,0.57762093]
[1771037182921,11.77287764,84.941,84.898,29.44696585]
[1771037182922,0.54992787,84.938,84.91,3.55686861]
[1771037183129,0.54992787,84.938,84.911,0.57762093]
[1771037185925,0.54992787,84.938,84.91,3.55686861]
[1771037185926,0.54992787,84.944,84.913,0.57762093]
[1771037186130,0.2,84.95,84.921,0.57762093]
[1771037186131,0.54992787,84.949,84.921,0.57762093]
[1771037188221,0.54992787,84.947,84.922,0.57762093]
[1771037188935,0.54992787,84.947,84.911,0.57762093]
[1771037189231,73.8,84.947,84.911,0.57762093]
[1771037189422,0.54992787,84.946,84.911,0.57762093]
[1771037189827,0.54992787,84.946,84.913,0.57762093]
[1771037190865,0.54992787,84.946,84.891,52.7]
[1771037190866,0.54992787,84.939,84.893,0.55182363]
[1771037191134,0.59472624,84.919,84.893,0.55182363]
[1771037191936,0.59472624,84.932,84.901,0.55182363]
[1771037193043,0.59472624,84.93,84.902,0.55182363]
[1771037194232,0.59472624,84.93,84.901,11.7783192]
[1771037194433,0.59472624,84.919,84.886,12.33221941]
[1771037194615,0.59472624,84.919,84.881,11.78111946]
[1771037195238,0.59472624,84.919,84.881,12.33294309]
[1771037199245,0.58498935,84.909,84.881,12.33294309]
[1771037202522,0.58498935,84.909,84.882,0.5879352]
[1771037203133,0.58498935,84.907,84.882,0.5879352]
[1771037204542,0.58498935,84.905,84.871,0.5879352]
[1771037204750,0.58498935,84.899,84.862,0.5879352]
[1771037206350,0.58498935,84.904,84.871,0.5879352]
[1771037206533,0.58498935,84.909,84.883,0.5879352]
[1771037209152,0.58498935,84.909,84.884,11.78078318]